bitfinex-derivatives/quotes_ETHF0:USTF0_20260121
["timestamp","ask_amount","ask_price","bid_price","bid_amount"]
[1769019397911,3.05044707,2904.0,2901.9,2.80559681]
[1769019398211,1.10632656,2903.9,2901.9,2.80559681]
[1769019398415,0.17233,2903.9,2901.9,2.80559681]
[1769019398815,4.15676705,2903.8,2901.9,2.80559681]
[1769019399011,3.22277707,2903.8,2901.9,2.80559681]
[1769019399417,0.17233,2903.8,2901.9,2.80559681]
[1769019400214,0.17234,2903.7,2901.9,2.80559681]
[1769019403822,0.17235,2903.5,2901.9,2.80559681]
[1769019404024,0.17235,2903.5,2902.0,6.66967505]
[1769019404623,0.17235,2903.5,2902.1,2.80167505]
[1769019405719,0.17232,2904.0,2902.1,2.97410505]
[1769019405923,0.17232,2904.0,2902.3,3.15931556]
[1769019407220,0.17232,2903.9,2902.3,3.15931556]
[1769019408919,0.17229,2904.5,2902.3,3.15931556]
[1769019409121,0.17229,2904.5,2902.5,3.15931556]
[1769019409318,0.17229,2904.5,2902.7,3.15931556]
[1769019409515,0.17229,2904.5,2902.9,3.15931556]
[1769019409721,0.17229,2904.5,2902.6,0.1724]
[1769019409722,0.17229,2904.5,2903.0,7.02731556]
[1769019410320,0.17229,2904.5,2903.1,3.15931556]
[1769019411417,0.00360852,2904.8,2903.3,3.15931556]
[1769019415231,0.00360852,2904.8,2903.5,3.15931556]
[1769019415530,0.17219,2906.1,2904.0,3.15931556]
[1769019415732,3.04578844,2906.4,2904.3,3.33161556]
[1769019416234,3.04578844,2906.4,2904.4,3.15931556]
[1769019416434,3.04993729,2906.4,2904.4,3.16304865]
[1769019417632,3.22211729,2906.4,2904.4,3.16304865]
[1769019418428,3.04993729,2906.4,2904.4,3.16304865]
[1769019418623,3.04578844,2906.1,2904.4,0.00373309]
[1769019419428,3.2880325,2905.6,2904.4,0.00373309]
[1769019419633,3.4602525,2905.6,2904.4,0.00373309]
[1769019419932,3.2880325,2905.3,2904.4,0.00373309]
[1769019421131,0.17225,2905.2,2904.4,0.00373309]
[1769019421724,3.4602425,2905.8,2904.4,0.00373309]
[1769019421933,0.17221,2905.8,2904.4,0.00373309]
[1769019422127,3.4602425,2905.8,2904.4,0.00373309]
[1769019423633,3.4602125,2906.3,2904.4,3.03322876]
[1769019424135,0.17218,2906.3,2904.4,3.20551876]
[1769019425127,3.4602125,2906.3,2904.6,3.02949567]
[1769019425832,3.2880325,2906.3,2904.5,3.868]
[1769019426034,3.2880325,2905.9,2904.5,3.868]
[1769019426432,0.1722,2906.0,2904.5,3.868]
[1769019426830,3.4602525,2905.7,2904.4,0.00373309]
[1769019427034,3.4602525,2905.6,2904.4,0.00373309]
[1769019428435,0.17222,2905.6,2904.4,0.00373309]
[1769019430227,3.2880325,2906.1,2904.4,0.00373309]
[1769019430434,3.4602225,2906.1,2904.4,0.00373309]
[1769019431430,0.17219,2906.1,2904.6,3.02949567]
[1769019434042,3.2880325,2905.9,2904.4,0.00373309]
[1769019434241,0.00414885,2906.4,2904.4,0.00373309]
[1769019434242,0.17219,2906.2,2904.4,0.00373309]
[1769019434442,3.4602225,2906.2,2904.4,0.00373309]
[1769019434837,3.4602225,2906.1,2904.4,0.00373309]
[1769019435039,0.17219,2906.1,2904.4,3.03322876]
[1769019435846,0.00414885,2906.4,2904.6,3.31892231]
[1769019436144,0.00414885,2906.4,2904.7,3.49119231]
[1769019436337,0.00414885,2906.4,2904.9,3.49118231]
[1769019437342,0.00414885,2906.4,2904.9,3.31892231]
[1769019437545,3.58284068,2906.3,2904.5,3.868]
[1769019437845,3.58284068,2906.3,2904.6,3.31892231]
[1769019438436,0.17218,2906.3,2904.6,3.31892231]
[1769019438839,3.41066068,2906.2,2904.5,3.868]
[1769019439443,3.41066068,2905.9,2904.5,3.868]
[1769019441342,3.41066068,2905.9,2904.4,0.00373309]
[1769019441847,3.41066068,2905.7,2904.4,0.00373309]
[1769019442758,3.58289068,2905.6,2904.4,0.00373309]
[1769019444358,3.41066068,2905.4,2904.4,0.00373309]
[1769019445354,3.41066068,2905.4,2903.7,3.868]
[1769019445355,3.41066068,2905.2,2903.7,3.868]
[1769019445658,0.17225,2905.1,2903.3,6.40323855]
[1769019446053,0.17225,2905.1,2903.4,3.31892231]
[1769019446245,0.17225,2905.1,2903.4,3.32180753]
[1769019448857,0.17222,2905.6,2903.4,3.49415753]
[1769019449053,0.93530007,2905.5,2903.6,3.31892231]
[1769019449259,4.34596075,2905.4,2903.6,3.31892231]
[1769019449459,3.41066068,2905.4,2903.6,3.31892231]
[1769019449756,3.41066068,2905.2,2903.4,0.00288522]
[1769019449957,2.46394984,2906.1,2903.4,0.00288522]
[1769019449958,3.41066068,2904.9,2903.4,0.00288522]
[1769019450154,3.58293068,2904.9,2903.4,0.00288522]
[1769019450750,3.58294068,2904.7,2903.4,0.00288522]
[1769019450955,3.58295068,2904.5,2903.4,0.00288522]
[1769019452254,0.17229,2904.5,2903.4,0.00288522]
[1769019452866,3.58295068,2904.5,2903.4,0.00288522]
[1769019453671,0.17229,2904.5,2903.4,0.00288522]
[1769019454072,3.41066068,2905.0,2903.4,0.00288522]
[1769019454269,3.41066068,2905.0,2903.4,3.32180753]
[1769019454469,0.17225,2905.1,2903.4,3.32180753]
[1769019454659,3.41066068,2905.5,2903.5,3.31892231]
[1769019454861,3.58288068,2905.8,2903.6,3.31892231]
[1769019455066,4.34432691,2905.7,2903.7,3.31892231]
[1769019455271,0.93366623,2905.6,2903.7,3.31892231]
[1769019455468,3.58288068,2905.7,2903.7,3.31892231]
[1769019455669,0.93370733,2905.6,2903.7,3.31892231]
[1769019455862,3.58288068,2905.7,2903.8,3.31892231]
[1769019456065,0.93370698,2905.6,2903.8,3.31892231]
[1769019456267,3.58288068,2905.7,2903.8,3.31892231]
[1769019456466,0.93372343,2905.6,2903.8,3.31892231]
[1769019456667,3.58288068,2905.7,2903.8,3.31892231]
[1769019456966,0.93372433,2905.6,2903.8,3.31892231]
[1769019457167,3.58288068,2905.7,2903.8,3.31892231]
[1769019457366,0.93372433,2905.6,2904.0,3.31892231]
[1769019457567,3.58285068,2906.2,2904.0,3.31892231]
[1769019457769,1.04136595,2906.1,2904.2,3.31892231]
[1769019457967,3.58285068,2906.2,2903.9,0.17232]
[1769019457968,0.93365225,2906.0,2904.3,7.18692231]
[1769019458166,3.58285068,2906.2,2904.3,7.18692231]
[1769019458369,0.93357849,2906.1,2904.3,7.18692231]
[1769019458566,3.58285068,2906.2,2904.3,7.18692231]
[1769019458774,0.93356811,2906.1,2904.3,7.18692231]
[1769019459073,0.00414885,2906.4,2904.4,3.31892231]
[1769019459263,0.00414885,2906.4,2904.6,3.31892231]
[1769019459465,0.00414885,2906.4,2905.0,3.31892231]
[1769019459671,0.00414885,2906.4,2905.1,3.49117231]
[1769019459870,3.41066068,2907.2,2905.3,3.49116231]
[1769019460077,0.17211,2907.5,2905.3,3.49116231]
[1769019460379,3.41066068,2907.7,2905.7,3.31892231]
[1769019460972,0.00383747,2907.7,2905.7,3.32192145]
[1769019462273,0.00383747,2907.7,2905.9,3.31892231]
[1769019463972,3.58277068,2907.6,2905.9,3.31892231]
[1769019464673,0.00383747,2907.7,2905.9,3.31892231]
[1769019465970,0.00383747,2907.7,2905.9,5.74192231]
[1769019466474,0.00383747,2907.7,2906.0,3.29788195]
[1769019467374,0.00383747,2907.7,2906.1,3.29788195]
[1769019467678,0.00383747,2907.7,2906.1,3.47007195]
[1769019468873,3.49323339,2908.4,2906.1,3.47007195]
[1769019469875,0.17629209,2908.4,2906.3,3.29788195]
[1769019472083,3.49746548,2908.4,2906.3,3.29788195]
[1769019472473,3.49746548,2908.4,2906.4,2.425]
[1769019472781,3.32540548,2908.4,2906.4,3.29788195]
[1769019473177,3.32117339,2908.0,2906.0,3.868]
[1769019473385,3.32117339,2907.5,2906.0,3.868]
[1769019473585,3.32117339,2907.5,2905.8,7.16588195]
[1769019473979,3.49331339,2907.1,2905.7,0.00299914]
[1769019474382,3.32117339,2906.6,2905.7,0.00299914]
[1769019474579,3.32117339,2906.6,2904.4,0.17229]
[1769019474580,3.49335339,2906.4,2904.2,5.21088195]
[1769019474887,3.49335339,2906.4,2904.3,3.29788195]
[1769019475086,0.17218,2906.4,2904.3,3.47018195]
[1769019475386,3.49335339,2906.4,2904.3,3.47018195]
[1769019475583,3.49335339,2906.3,2904.3,3.4737696]
[1769019475783,3.49614935,2906.3,2904.3,5.8987696]
[1769019475987,3.49614935,2906.3,2904.4,3.29788195]
[1769019476688,3.49336339,2906.2,2904.4,3.29788195]
[1769019476888,0.17219,2906.2,2904.4,3.29788195]
[1769019478183,3.49336339,2906.2,2904.4,3.29788195]
[1769019478585,3.49337339,2906.0,2904.3,0.00358765]
[1769019478791,3.32117339,2906.0,2904.3,0.00358765]
[1769019479184,0.17222,2905.7,2904.3,0.00358765]
[1769019479984,3.55110229,2905.7,2904.3,0.00358765]
[1769019481087,0.17224,2905.4,2904.3,0.00358765]
[1769019481288,3.55113229,2905.2,2904.3,0.00358765]
[1769019481592,3.55113229,2905.2,2903.4,3.34769162]
[1769019482087,3.37888229,2904.7,2902.4,3.34769162]
[1769019482294,3.55116229,2904.7,2902.4,5.77169162]
[1769019482593,3.55116229,2904.7,2902.8,0.90000069]
[1769019482792,3.55116229,2904.7,2902.8,0.00285212]
[1769019483386,3.37888229,2904.5,2902.8,0.00285212]
[1769019483586,3.55117229,2904.5,2902.8,0.00285212]
[1769019483790,3.37888229,2904.3,2902.8,0.00285212]
[1769019484185,0.2768733,2904.8,2902.8,0.00285212]
[1769019484186,3.37888229,2904.0,2902.8,0.00285212]
[1769019484383,3.38267485,2904.0,2902.8,0.00285212]
[1769019485482,0.17233,2903.8,2902.8,0.00285212]
[1769019485682,3.38267485,2904.0,2902.8,0.00285212]
[1769019487593,3.37888229,2903.8,2901.4,3.34769162]
[1769019487793,3.37888229,2903.8,2901.5,3.34769162]
[1769019488591,3.37888229,2903.8,2901.8,3.34769162]
[1769019488788,3.55121229,2903.9,2901.8,3.34769162]
[1769019489300,3.55122229,2903.7,2901.8,3.34769162]
[1769019489891,3.55122229,2903.7,2901.5,0.00431813]
[1769019490091,3.55122229,2903.7,2901.6,3.34769162]
[1769019490491,3.55122229,2903.6,2901.6,3.34769162]
[1769019491092,0.17234,2903.6,2901.6,3.52015162]
[1769019491595,3.55122229,2903.6,2901.6,3.52015162]
[1769019492000,0.00379256,2904.0,2901.8,3.34769162]
[1769019492196,0.00379256,2904.0,2901.8,3.52014162]
[1769019492699,0.00379256,2904.0,2902.0,3.34769162]
[1769019492900,0.00379256,2904.0,2902.0,3.52013162]
[1769019493398,0.00379256,2904.0,2902.2,3.34769162]
[1769019494305,0.00379256,2904.0,2902.2,3.52011162]
[1769019495401,3.37888229,2903.8,2901.6,3.52015162]
[1769019496299,0.00379256,2904.0,2901.9,3.49957938]
[1769019496607,0.00379256,2904.0,2902.3,3.67199938]
[1769019497101,0.00379256,2904.0,2902.6,3.49957938]
[1769019497307,0.00379256,2904.0,2902.8,3.49957938]
[1769019497603,3.47067227,2904.9,2903.0,3.67194938]
[1769019498303,3.47067227,2904.6,2902.8,3.868]
[1769019498506,3.64698925,2904.6,2902.8,3.868]
[1769019500901,3.64698925,2904.6,2902.7,6.09096938]
[1769019501807,0.00402698,2904.6,2903.0,3.49957938]
[1769019502005,0.00402698,2904.6,2903.1,3.49957938]
[1769019502212,0.00402698,2904.6,2903.3,3.49957938]
[1769019503112,0.00402698,2904.6,2903.3,3.67193938]
[1769019503806,3.47469925,2904.6,2903.0,3.868]
[1769019504007,3.64697925,2904.6,2903.1,3.868]
[1769019504201,0.17630698,2904.6,2903.1,3.868]
[1769019506515,0.00402698,2904.6,2903.1,3.868]
[1769019508602,0.00402698,2904.6,2903.1,7.36757938]
[1769019508808,0.17223,2905.5,2903.7,3.49957938]
[1769019509015,0.17223,2905.5,2903.8,9.80057938]
[1769019509616,0.17223,2905.5,2903.8,7.36757938]
[1769019509916,3.6464228,2905.5,2903.8,3.87143018]
[1769019510518,3.47067227,2905.3,2903.8,3.87143018]
[1769019510713,3.64292227,2905.2,2903.8,3.87143018]
[1769019511314,0.17225,2905.2,2903.8,3.87143018]
[1769019511920,0.00352053,2905.5,2903.8,3.87143018]
[1769019512526,0.00352053,2905.5,2903.9,3.868]
[1769019512726,3.4741928,2905.5,2903.9,3.868]
[1769019514123,0.00352053,2905.5,2904.0,3.868]
[1769019514427,0.00352053,2905.5,2904.2,3.67188938]
[1769019514723,0.00352053,2905.5,2904.4,3.49957938]
[1769019515021,0.00352053,2905.5,2904.4,9.80557938]
[1769019515228,3.47067227,2906.5,2904.5,3.49957938]
[1769019515431,3.64284227,2906.5,2904.5,3.49957938]
[1769019515925,0.17218,2906.4,2904.5,3.49957938]
[1769019516121,0.17619663,2906.4,2904.5,3.49957938]
[1769019516525,0.17619663,2906.4,2904.5,3.67186938]
[1769019517630,0.00401663,2906.4,2904.7,3.67184938]
[1769019518223,0.00401663,2906.4,2904.7,3.49957938]
[1769019518424,3.64286227,2906.3,2904.6,2.44]
[1769019518824,3.64286227,2906.1,2904.2,7.36757938]
[1769019519027,3.64286227,2906.1,2904.3,2.44]
[1769019519818,3.47067227,2906.1,2904.3,2.44]
[1769019520024,0.17222,2905.6,2904.2,3.868]
[1769019520218,0.17222,2905.6,2904.1,2.441]
[1769019521327,0.17219,2906.2,2904.2,3.49957938]
[1769019521528,0.17219,2906.2,2904.4,3.49957938]
[1769019523225,3.64286227,2906.2,2904.4,3.49957938]
[1769019523528,3.47067227,2905.9,2904.3,6.314]
[1769019523727,3.47067227,2905.9,2904.3,3.868]
[1769019524226,3.47067227,2905.5,2903.8,0.00343018]
[1769019524429,1.4114154,2905.8,2903.8,0.00343018]
[1769019524430,0.17226,2904.9,2903.8,0.00343018]
[1769019525225,3.47067227,2905.1,2903.8,0.00343018]
[1769019525422,0.1723,2904.3,2902.4,3.50260956]
[1769019525728,3.90082679,2904.3,2902.5,2.446]
[1769019525923,3.90083679,2904.2,2902.5,2.446]
[1769019526130,0.17232,2904.0,2902.3,2.447]
[1769019526529,0.17482317,2904.0,2902.3,2.45147684]
[1769019526829,0.00250317,2904.0,2902.4,3.50260956]
[1769019530131,3.73102996,2904.0,2902.5,2.45]
[1769019530722,3.73102996,2904.0,2902.3,3.5070864]
[1769019530922,3.73102996,2904.0,2902.4,5.95260956]
[1769019530923,0.00250317,2904.0,2902.4,5.95260956]
[1769019532828,0.00250317,2904.0,2902.5,3.50260956]
[1769019533031,0.00250317,2904.0,2902.7,3.50260956]
[1769019534137,0.00250317,2904.0,2902.7,3.67499956]
[1769019534336,3.72852679,2905.0,2902.9,3.50260956]
[1769019534638,3.72852679,2905.2,2903.2,3.50260956]
[1769019535329,3.7309605,2905.2,2903.2,3.50260956]
[1769019535529,0.17226,2905.1,2903.2,3.50260956]
[1769019535736,0.17226,2905.1,2903.2,3.67496956]
[1769019536138,0.00243371,2905.2,2903.4,3.50260956]
[1769019536334,0.00243371,2905.2,2903.6,3.50260956]
[1769019536532,0.00243371,2905.2,2903.7,3.868]
[1769019539136,3.72441512,2905.2,2903.7,3.868]
[1769019540337,3.72198141,2905.0,2903.7,3.868]
[1769019540632,3.89424141,2905.0,2903.7,3.868]
[1769019540838,3.72198141,2905.0,2903.2,3.868]
[1769019541442,0.00243371,2905.2,2903.2,3.868]
[1769019541443,3.89425141,2904.8,2903.2,3.868]
[1769019542730,0.00243371,2905.2,2903.3,3.6073046]
[1769019543130,0.00243371,2905.2,2903.5,3.6073046]
[1769019543340,0.00243371,2905.2,2903.6,0.17234]
[1769019543636,0.00243371,2905.2,2903.9,3.6073046]
[1769019543838,0.00243371,2905.2,2903.9,3.7796246]
[1769019544037,0.00243371,2905.2,2903.6,2.458]
[1769019544436,3.72441512,2905.2,2903.2,3.868]
[1769019544634,3.89423141,2905.1,2903.2,3.868]
[1769019544838,3.89423141,2905.1,2903.3,3.868]
[1769019545034,0.00243371,2905.2,2903.4,3.6073046]
[1769019545239,0.00243371,2905.2,2903.4,3.7796546]
[1769019545840,0.17468371,2905.2,2903.5,2.461]
[1769019546037,0.17468371,2905.2,2903.5,6.0683046]
[1769019546445,3.89666512,2905.2,2903.5,6.0693046]
[1769019547237,3.89424141,2905.1,2903.5,2.462]
[1769019548740,0.17226,2905.1,2903.5,6.0693046]
[1769019548939,0.00243371,2905.2,2903.6,3.6073046]
[1769019549140,0.00243371,2905.2,2903.8,3.6073046]
[1769019551143,0.00243371,2905.2,2903.7,3.868]
[1769019551444,0.17225,2905.1,2903.7,3.868]
[1769019552637,0.17225,2905.1,2903.7,7.4753046]
[1769019552837,0.00243371,2905.2,2903.7,7.4753046]
[1769019553644,0.00243371,2905.2,2903.8,3.868]
[1769019555745,0.00243371,2905.2,2903.8,7.27343118]
[1769019555941,0.00243371,2905.2,2903.9,3.40543118]
[1769019556150,0.1722,2906.0,2904.1,3.40543118]
[1769019556346,0.1722,2906.0,2904.3,3.40543118]
[1769019556545,0.1722,2906.0,2904.4,2.477]
[1769019556747,0.1722,2906.0,2904.5,3.868]
[1769019556942,0.17217,2906.6,2904.6,7.27343118]
[1769019557144,0.17469461,2906.6,2904.8,3.40543118]
[1769019558060,3.70143118,2906.5,2904.6,0.00331986]
[1769019558247,3.70143118,2906.3,2904.6,2.48231986]
[1769019558847,0.1722,2906.0,2904.6,2.48231986]
[1769019559746,0.17221,2905.8,2904.6,0.00331986]
[1769019561148,3.70143118,2906.3,2904.6,0.00331986]
[1769019561445,0.1722,2906.0,2904.6,0.00331986]
[1769019562653,3.87363118,2906.0,2904.6,0.00331986]
[1769019563744,3.87360118,2906.5,2904.6,3.40875104]
[1769019563946,0.17218,2906.3,2904.6,3.40875104]
[1769019564149,3.70143118,2906.2,2904.6,0.00331986]
[1769019564550,3.87363118,2906.0,2904.6,0.00331986]
[1769019566152,0.1722,2905.9,2904.6,0.00331986]
[1769019566857,0.17221,2905.8,2904.6,0.00331986]
[1769019567054,0.17223,2905.5,2904.6,0.00331986]
[1769019567355,3.87366118,2905.5,2904.6,0.00331986]
[1769019569158,0.17224,2905.4,2904.6,0.00331986]
[1769019569354,3.87368118,2905.2,2903.7,2.479]
[1769019569560,3.87368118,2905.1,2903.4,2.477]
[1769019569751,0.17225,2905.1,2903.4,2.477]
[1769019569958,0.17223,2905.5,2903.5,3.40543118]
[1769019570258,3.87367118,2905.3,2903.5,3.40543118]
[1769019570456,3.87367118,2905.3,2903.5,3.4084707]
[1769019572758,3.70143118,2905.0,2903.5,0.00303952]
[1769019572962,0.17227,2904.8,2903.5,0.00303952]
[1769019574254,3.87370118,2904.8,2903.5,0.00303952]
[1769019578165,0.17227,2904.8,2903.5,0.00303952]
[1769019578366,0.17227,2904.8,2903.5,3.4084707]
[1769019579359,0.17227,2904.8,2903.5,0.00303952]
[1769019579360,3.87370118,2904.8,2903.5,0.00303952]
[1769019579564,3.87371118,2904.7,2903.5,0.00303952]
[1769019579766,3.87371118,2904.6,2903.5,0.00303952]
[1769019581361,3.70143118,2904.6,2903.5,0.00303952]
[1769019581569,3.87373118,2904.4,2903.5,0.00303952]
[1769019581769,3.87665836,2904.4,2903.5,0.00303952]
[1769019582965,3.87665836,2904.4,2902.5,3.40543118]
[1769019583666,3.87665836,2904.4,2902.5,3.57784118]
[1769019584064,3.87665836,2904.4,2902.5,3.58213358]
[1769019584266,3.87665836,2904.4,2902.6,3.57783118]
[1769019584570,0.17522718,2904.4,2902.8,3.57782118]
[1769019584970,0.00292718,2904.4,2902.9,3.40543118]
[1769019585173,0.00292718,2904.4,2903.1,3.57780118]
[1769019585378,0.17226,2905.0,2903.5,3.76309093]
[1769019585675,3.70143118,2905.4,2903.7,3.76309093]
[1769019585881,3.70143118,2905.4,2903.7,6.24409093]
[1769019586176,3.70143118,2905.4,2903.7,6.41642093]
[1769019586972,3.70420487,2905.4,2903.7,6.41642093]
[1769019590185,0.00277369,2905.4,2903.8,3.93542093]
[1769019590481,0.00277369,2905.4,2904.1,3.76309093]
[1769019590884,0.00277369,2905.4,2904.2,3.93539093]
[1769019591185,3.64769509,2906.3,2904.6,3.76309093]
[1769019591884,3.64769509,2906.3,2904.7,2.484]
[1769019592286,3.65160165,2906.3,2904.7,2.4871691]
[1769019592483,3.82378165,2906.3,2904.7,2.4871691]
[1769019593378,3.82378165,2906.3,2904.7,6.25026003]
[1769019596576,3.82378165,2906.3,2904.7,3.76626003]
[1769019596780,3.82378165,2906.3,2904.7,6.25126003]
[1769019597786,3.82378165,2906.3,2904.7,2.4881691]
[1769019600080,3.82378165,2906.3,2904.7,0.0031691]
[1769019600286,3.68745105,2906.1,2904.7,0.0031691]
[1769019600685,0.00390656,2906.3,2904.7,0.0031691]
[1769019600686,3.68745105,2905.8,2904.7,0.0031691]
[1769019601688,0.17222,2905.7,2904.7,0.0031691]
[1769019601883,3.85964105,2906.2,2904.7,0.0031691]
[1769019604999,3.68745105,2906.0,2904.7,0.0031691]
[1769019605193,3.68745105,2905.5,2904.7,0.0031691]
[1769019605494,3.85967105,2905.6,2904.7,0.0031691]
[1769019605692,0.00390656,2906.3,2904.7,0.0031691]
[1769019605886,3.69135761,2906.3,2904.7,0.0031691]
[1769019606391,3.86353761,2906.3,2904.7,0.0031691]
[1769019606586,3.86353761,2906.3,2904.7,0.1754391]
[1769019606890,3.69135761,2906.3,2904.9,0.17226]
[1769019607489,3.69135761,2906.3,2904.7,0.0031691]
[1769019608498,3.68745105,2905.9,2904.7,0.0031691]
[1769019609800,3.68745105,2905.9,2903.5,8.11965677]
[1769019609801,3.85969105,2905.3,2903.5,3.77944153]
[1769019610098,3.85969105,2905.3,2903.6,0.17234]
[1769019610398,3.85969105,2905.3,2903.7,0.17234]
[1769019610797,3.85969105,2905.3,2903.7,0.17528473]
[1769019615504,3.58295694,2904.7,2903.7,0.00294473]
[1769019615803,3.75523694,2904.7,2903.7,0.00294473]
[1769019616003,3.75523694,2904.7,2902.8,5.56631624]
[1769019616203,3.75523694,2904.7,2902.8,2.482]
[1769019616903,3.58295694,2904.5,2902.8,0.00315839]
[1769019617103,3.75525694,2904.3,2902.8,0.00315839]
[1769019617500,3.58295694,2904.1,2902.8,0.00315839]
[1769019617705,3.75966498,2904.1,2902.8,0.00315839]
[1769019618010,3.58295694,2903.9,2902.8,0.00315839]
[1769019618314,3.58295694,2903.5,2901.6,4.51267524]
[1769019618605,3.58295694,2903.3,2901.4,3.60252871]
[1769019618797,3.58295694,2903.3,2901.5,3.60252871]
[1769019619199,3.58295694,2903.3,2901.5,3.60657616]
[1769019620205,3.58295694,2903.3,2901.8,0.17245]
[1769019620413,3.58295694,2904.0,2901.8,0.17245]
[1769019620810,3.58295694,2904.0,2901.8,2.65645]
[1769019621011,3.58295694,2903.6,2901.8,2.65645]
[1769019621303,3.75529694,2903.6,2901.8,2.484]
[1769019621497,3.75529694,2903.6,2901.5,0.00404745]
[1769019621697,3.58295694,2903.4,2901.5,0.00404745]
[1769019622202,3.58295694,2903.2,2901.5,0.00404745]
[1769019622808,3.58295694,2903.8,2901.6,3.60252871]
[1769019624700,3.58295694,2903.8,2901.7,2.484]
[1769019624906,3.58295694,2903.6,2901.7,2.484]
[1769019625815,3.58295694,2903.6,2901.5,0.17651745]
[1769019626516,3.58295694,2903.4,2901.5,0.17651745]
[1769019627111,3.58295694,2903.4,2901.7,3.60252871]
[1769019627614,3.58295694,2903.4,2901.7,3.77497871]
[1769019627805,3.58295694,2903.9,2902.0,3.60252871]
[1769019628208,3.58295694,2903.9,2902.0,3.77496871]
[1769019629112,3.58295694,2903.7,2902.0,0.17244]
[1769019629318,3.58295694,2903.5,2901.7,2.485]
[1769019629807,0.17235,2903.6,2901.9,0.17244]
[1769019630111,3.58295694,2904.0,2902.2,3.60252871]
[1769019630510,3.75527694,2903.9,2902.1,0.17243]
[1769019633415,0.00439804,2904.1,2902.1,0.17243]
[1769019633416,3.58295694,2903.7,2902.1,0.17243]
[1769019633615,3.58295694,2903.5,2901.8,2.482]
[1769019634417,3.58295694,2903.3,2901.8,2.482]
[1769019637314,3.58295694,2903.3,2901.6,0.17246]
[1769019637315,3.75531694,2903.3,2901.6,0.17246]
[1769019641418,3.58295694,2903.1,2901.6,0.17246]
[1769019643719,3.58295694,2903.5,2901.6,3.60252871]
[1769019643936,3.58295694,2903.9,2902.0,3.60252871]
[1769019644221,0.95678428,2903.8,2902.2,0.17242]
[1769019644423,3.58295694,2903.9,2902.2,0.17242]
[1769019644614,3.58295694,2903.4,2901.6,3.25677624]
[1769019644923,3.58295694,2903.4,2901.6,0.17246]
[1769019645322,4.54278629,2903.3,2901.6,0.17246]
[1769019645527,3.75531694,2903.3,2901.6,0.17246]
[1769019646926,3.75531694,2903.3,2901.7,3.65847275]
[1769019647425,3.75531694,2903.3,2901.8,3.868]
[1769019647626,0.91985156,2903.6,2901.9,3.65846275]
[1769019647820,1.23070457,2903.7,2901.9,3.65846275]
[1769019647821,0.96121187,2903.5,2901.9,3.48602275]
[1769019648128,3.82646468,2903.7,2901.8,7.12476624]
[1769019648323,3.65412468,2903.5,2901.9,2.489]
[1769019650224,3.65412468,2903.3,2901.9,2.502]
[1769019650425,4.61548103,2903.2,2901.9,2.502]
[1769019650625,4.61548103,2903.2,2901.8,4.04045]
[1769019650626,3.65412468,2903.2,2901.8,4.04045]
[1769019650825,3.65412468,2903.0,2901.8,3.868]
[1769019652927,0.91985156,2903.4,2901.8,3.868]
[1769019653130,0.9613179,2903.4,2901.9,0.17244]
[1769019653430,3.65412468,2903.5,2902.0,3.868]
[1769019653636,0.96126227,2903.4,2902.0,3.868]
[1769019653824,3.65412468,2903.5,2902.0,3.868]
[1769019654224,4.58369839,2904.0,2902.1,3.48602275]
[1769019654436,0.96111937,2903.9,2902.1,3.48602275]
[1769019654630,0.96111937,2903.8,2902.1,6.57033899]
[1769019654831,3.65412468,2903.9,2902.1,6.57033899]
[1769019655029,0.96107025,2903.8,2902.1,6.57033899]
[1769019655227,0.00439804,2904.1,2902.2,10.43833899]
[1769019655533,0.00439804,2904.1,2902.4,3.48602275]
[1769019656328,0.00439804,2904.1,2902.6,0.1724]
[1769019656626,0.00439804,2904.1,2902.8,3.48602275]
[1769019656828,0.00439804,2904.1,2903.1,0.17237]
[1769019658028,0.00439804,2904.1,2902.9,3.868]
[1769019658232,3.65852272,2904.1,2903.0,2.519]
[1769019659431,3.65852272,2904.1,2902.9,3.868]
[1769019660834,0.00439804,2904.1,2902.9,7.51561851]
[1769019661138,0.00439804,2904.1,2903.0,3.81998851]
[1769019661338,0.00439804,2904.1,2903.1,0.17237]
[1769019661534,3.72185857,2905.0,2903.5,0.17234]
[1769019661834,3.72185857,2905.4,2903.6,0.17234]
[1769019662633,3.72556125,2905.4,2903.6,0.17608737]
[1769019662933,3.89780125,2905.4,2903.6,0.17608737]
[1769019663133,0.00370268,2905.4,2903.8,3.81993851]
[1769019663434,3.72185857,2906.3,2904.4,3.81990851]
[1769019663740,3.72185857,2906.3,2904.5,2.523]
[1769019663941,3.72185857,2906.1,2903.9,3.64761851]
[1769019664143,3.72185857,2906.1,2904.0,2.523]
[1769019664435,3.72472541,2906.1,2904.0,2.523]
[1769019665028,3.72472541,2906.1,2904.2,0.17231]
[1769019665227,0.00286684,2906.1,2904.5,3.81990851]
[1769019665639,3.72472541,2906.1,2904.5,3.81990851]
[1769019665841,3.72472541,2906.1,2904.5,0.17229]
[1769019667240,3.72185857,2905.9,2903.9,0.17232]
[1769019667435,3.89406857,2905.9,2904.0,2.521]
[1769019667837,3.89406857,2905.9,2904.0,2.69332]
[1769019668236,3.72185857,2905.7,2904.0,2.521]
[1769019668438,3.89407857,2905.7,2904.0,2.521]
[1769019669234,0.00286684,2906.1,2904.1,3.64761851]
[1769019669440,0.00286684,2906.1,2904.8,0.17227]
[1769019669638,0.00286684,2906.1,2904.9,3.868]
[1769019670932,3.72472541,2906.1,2904.9,3.868]
[1769019672145,0.00286684,2906.1,2904.9,3.868]
[1769019673841,0.00286684,2906.1,2905.0,3.868]
[1769019674845,0.00286684,2906.1,2905.1,7.51561851]
[1769019675042,3.72185857,2907.0,2905.3,0.17224]
[1769019675248,0.27988714,2907.4,2905.6,0.17222]
[1769019675547,3.72185857,2907.5,2905.7,2.525]
[1769019675852,3.58701956,2908.0,2906.1,0.17219]
[1769019676150,3.59037955,2908.0,2906.4,0.17218]
[1769019676443,3.59037955,2908.0,2906.1,0.00372136]
[1769019676643,3.76245955,2908.0,2906.1,0.00372136]
[1769019677045,3.76245955,2908.0,2906.1,3.78669333]
[1769019678251,3.76245955,2908.0,2906.1,3.95888333]
[1769019678449,0.00335999,2908.0,2906.5,3.95514197]
[1769019678753,0.00335999,2908.0,2906.6,3.95513197]
[1769019679143,0.00335999,2908.0,2906.6,3.78297197]
[1769019679349,3.58701956,2909.0,2906.8,3.78297197]
[1769019679547,3.58701956,2909.9,2907.1,3.78297197]
[1769019679845,3.58701956,2909.9,2907.5,3.78297197]
[1769019680247,3.5913719,2909.9,2907.5,3.78297197]
[1769019680850,3.58701956,2909.6,2907.6,2.524]
[1769019681746,3.58701956,2909.0,2907.0,3.78297197]
[1769019681947,3.75904956,2909.0,2907.0,2.403]
[1769019682653,0.00435234,2909.9,2906.6,3.95513197]